bitfinex/quotes_SOLUSD_20220212
["timestamp","ask_amount","ask_price","bid_price","bid_amount"]
[1644651288192,43.30981803,93.818,93.7,12.75]
[1644651288392,5.332,93.817,93.701,7.71566791]
[1644651288595,23.0062,93.86,93.701,7.71566791]
[1644651288596,7.0,93.88,93.701,7.71566791]
[1644651288896,7.0,93.86,93.702,2.38366791]
[1644651289092,7.0,93.86,93.703,5.331]
[1644651289295,5.331,93.859,93.703,5.331]
[1644651289493,5.331,93.859,93.704,2.38366791]
[1644651289693,43.3905454,93.858,93.704,2.38366791]
[1644651289892,5.331,93.857,93.705,5.33]
[1644651290295,5.331,93.857,93.707,33.59470781]
[1644651290495,5.331,93.857,93.72,12.75]
[1644651290695,38.19844853,93.829,93.707,33.59470781]
[1644651290893,5.332,93.828,93.707,33.59470781]
[1644651291094,7.0,93.81,93.707,33.59470781]
[1644651291295,44.09919486,93.808,93.707,33.59470781]
[1644651291694,44.09919486,93.808,93.708,5.332]
[1644651291893,5.332,93.807,93.707,33.59470781]
[1644651292294,44.09919486,93.808,93.707,33.59470781]
[1644651292495,44.09919486,93.808,93.708,5.332]
[1644651292895,5.332,93.807,93.69,12.75]
[1644651293094,7.0,93.8,93.675,24.7608]
[1644651293296,7.0,93.78,93.675,24.7608]
[1644651293494,5.333,93.779,93.675,24.7608]
[1644651293694,0.48,93.817,93.675,24.7608]
[1644651293695,7.0,93.77,93.675,24.7608]
[1644651293895,7.0,93.76,93.675,24.7608]
[1644651294496,47.79081179,93.769,93.675,24.7608]
[1644651294697,41.06627577,93.749,93.675,24.7608]
[1644651295099,5.335,93.748,93.675,24.7608]
[1644651295298,7.0,93.74,93.675,24.7608]
[1644651295499,7.0,93.73,93.675,24.7608]
[1644651295900,38.99952118,93.729,93.676,40.44111371]
[1644651297098,5.336,93.759,93.676,40.44111371]
[1644651297700,5.335,93.789,93.676,40.44111371]
[1644651297900,7.0,93.8,93.68,12.75]
[1644651298103,41.56017272,93.799,93.681,5.333]
[1644651298801,41.56017272,93.799,93.682,2.38366791]
[1644651299001,36.22717272,93.799,93.683,5.333]
[1644651299600,5.333,93.798,93.681,5.333]
[1644651299803,5.333,93.798,93.68,12.75]
[1644651300004,41.56017272,93.799,93.681,5.333]
[1644651300502,7.0,93.79,93.681,5.333]
[1644651300703,5.333,93.789,93.681,5.333]
[1644651301502,113.0,93.786,93.681,5.333]
[1644651302002,35.62318189,93.779,93.681,5.333]
[1644651302202,5.333,93.778,93.681,5.333]
[1644651302402,35.62318189,93.779,93.681,5.333]
[1644651303609,35.62318189,93.779,93.677,5.333]
[1644651304505,113.0,93.786,93.677,5.333]
[1644651304706,5.333,93.819,93.69,12.75]
[1644651304905,5.333,93.82,93.691,5.333]
[1644651305107,7.0,93.81,93.691,5.333]
[1644651305309,113.0,93.835,93.691,7.71666791]
[1644651305508,35.20914451,93.819,93.692,64.0381132]
[1644651305710,35.20914451,93.819,93.692,73.85489493]
[1644651305907,35.20914451,93.819,93.693,44.78364613]
[1644651306310,35.20914451,93.819,93.694,34.9668644]
[1644651306709,35.20914451,93.819,93.695,19.03725518]
[1644651306908,35.20914451,93.819,93.7,15.9983]
[1644651307110,5.332,93.849,93.71,12.75]
[1644651307309,5.331,93.859,93.711,5.331]
[1644651307512,5.331,93.899,93.711,5.331]
[1644651307710,5.331,93.883,93.711,7.71466791]
[1644651307910,5.331,93.883,93.712,2.38366791]
[1644651308112,5.331,93.883,93.713,5.33]
[1644651308311,41.08765655,93.882,93.714,39.95286656]
[1644651308513,41.08765655,93.882,93.715,5.33]
[1644651308816,41.08765655,93.882,93.73,12.75]
[1644651309011,41.08765655,93.882,93.731,34.88949595]
[1644651309211,41.08765655,93.882,93.731,37.27316386]
[1644651309613,41.08765655,93.882,93.732,2.38366791]
[1644651309812,15.9961,93.88,93.74,15.9932]
[1644651310013,15.9961,93.88,93.731,29.55949595]
[1644651310014,5.329,93.879,93.731,29.55949595]
[1644651310214,5.329,93.879,93.733,5.33]
[1644651310414,7.0,93.85,93.733,5.33]
[1644651310614,113.0,93.83,93.732,5.33]
[1644651310815,48.30898708,93.829,93.732,5.33]
[1644651311014,5.331,93.828,93.732,5.33]
[1644651311420,5.331,93.828,93.732,7.71366791]
[1644651311815,5.331,93.828,93.79,0.30932144]
[1644651312016,48.30898708,93.829,93.79,0.30932144]
[1644651312817,5.329,93.828,93.79,0.30932144]
[1644651314022,48.30898708,93.829,93.79,0.30932144]
[1644651315424,5.329,93.828,93.79,0.00932144]
[1644651315825,7.0,93.82,93.79,0.00932144]
[1644651316025,7.0,93.81,93.682,5.329]
[1644651316225,5.333,93.809,93.682,5.329]
[1644651316425,42.84555976,93.808,93.683,41.93270402]
[1644651316626,113.0,93.777,93.683,41.93270402]
[1644651316825,52.61972148,93.776,93.66,5.333]
[1644651317026,52.61972148,93.776,93.64,12.75]
[1644651317628,7.0,93.77,93.64,12.75]
[1644651317827,5.333,93.769,93.622,47.54]
[1644651318028,7.0,93.76,93.622,47.54]
[1644651318247,7.0,93.76,93.615,5.333]
[1644651318248,7.0,93.75,93.602,4.48889343]
[1644651318444,5.337,93.749,93.611,5.336]
[1644651318647,7.0,93.73,93.59,12.75]
[1644651318845,41.1521115,93.728,93.582,40.11127053]
[1644651319045,7.0,93.71,93.582,45.44927053]
[1644651319251,38.62008842,93.709,93.582,45.44927053]
[1644651319547,16.0252,93.7,93.583,2.38366791]
[1644651319745,16.0252,93.7,93.584,5.339]
[1644651319946,16.0252,93.7,93.582,40.11127053]
[1644651320149,16.0252,93.7,93.585,2.38366791]
[1644651320446,16.0252,93.7,93.59,12.75]
[1644651320847,16.0252,93.7,93.591,2.38366791]
[1644651321248,16.0252,93.7,93.59,12.75]
[1644651321850,5.339,93.708,93.591,2.38366791]
[1644651322049,38.62008842,93.709,93.591,2.38366791]
[1644651322253,38.62008842,93.709,93.591,19.03725518]
[1644651322450,38.62008842,93.709,93.586,5.339]
[1644651322750,5.339,93.708,93.586,5.339]
[1644651322949,5.339,93.708,93.582,40.11127053]
[1644651323350,5.339,93.708,93.583,2.38366791]
[1644651323550,5.339,93.708,93.584,5.339]
[1644651323847,16.0245,93.7,93.583,5.339]
[1644651324249,28.7745,93.7,93.583,5.339]
[1644651324453,7.72266791,93.699,93.582,40.11127053]
[1644651324650,34.80541377,93.689,93.582,40.11127053]
[1644651324851,16.0331,93.67,93.582,40.11127053]
[1644651325051,39.39612616,93.669,93.583,5.34]
[1644651326551,39.39612616,93.669,93.582,40.11127053]
[1644651326751,39.39612616,93.669,93.583,5.34]
[1644651328755,16.0243,93.7,93.583,5.34]
[1644651328953,16.0243,93.7,93.582,40.11127053]
[1644651329154,16.0243,93.7,93.584,2.38366791]
[1644651329353,16.0243,93.7,93.585,5.339]
[1644651329753,45.19645846,93.699,93.585,5.339]
[1644651330255,16.0209,93.72,93.59,16.0226]
[1644651330455,16.0209,93.72,93.583,5.339]
[1644651330456,7.0,93.73,93.6,12.75]
[1644651330655,159.33,93.82,93.61,12.75]
[1644651330656,5.338,93.748,93.61,12.75]
[1644651330854,60.3946,93.76,93.61,12.75]
[1644651331055,60.3946,93.76,93.611,5.337]
[1644651331255,16.0179,93.74,93.612,29.40109198]
[1644651331456,37.93742167,93.739,93.631,40.11127053]
[1644651332656,16.0195,93.73,93.631,40.11127053]
[1644651332856,16.0195,93.73,93.632,5.337]
[1644651334057,16.0195,93.73,93.631,40.11127053]
[1644651334261,5.337,93.729,93.631,40.11127053]
[1644651334458,16.0215,93.72,93.631,40.11127053]
[1644651334660,46.9653175,93.719,93.631,40.11127053]
[1644651340062,5.337,93.749,93.632,2.38366791]
[1644651340262,60.3865,93.77,93.632,7.72066791]
[1644651340561,7.0,93.77,93.633,2.99153552]
[1644651340760,5.336,93.769,93.634,5.336]
[1644651340961,40.67994426,93.768,93.634,5.336]
[1644651341162,46.01594426,93.768,93.632,5.336]
[1644651341564,40.67994426,93.768,93.632,5.336]
[1644651341760,16.0143,93.76,93.64,16.0124]
[1644651341960,16.0143,93.76,93.641,5.335]
[1644651342164,5.336,93.759,93.641,5.335]
[1644651342464,7.71966791,93.759,93.641,5.335]
[1644651342660,2.38366791,93.758,93.641,5.335]
[1644651342862,5.336,93.757,93.641,5.335]
[1644651343168,44.94060348,93.749,93.641,5.335]
[1644651343961,5.336,93.748,93.641,5.335]
[1644651344164,5.336,93.748,93.64,12.75]
[1644651344563,5.336,93.748,93.641,3.0076343]
[1644651344763,5.336,93.748,93.64,12.75]
[1644651345167,44.94060348,93.749,93.647,2.98503827]
[1644651345464,44.94060348,93.749,93.65,12.75]
[1644651345664,44.94060348,93.749,93.651,3.0079655]
[1644651345865,44.94060348,93.749,93.652,5.336]
[1644651346164,44.94060348,93.749,93.653,3.0079655]
[1644651346363,7.0,93.77,93.653,3.0079655]
[1644651346764,23.0126,93.77,93.653,5.99300377]
[1644651347368,47.2107449,93.769,93.653,5.99300377]
[1644651347569,47.2107449,93.769,93.654,5.335]
[1644651347765,47.2107449,93.769,93.655,5.99300377]
[1644651347964,47.2107449,93.769,93.658,2.98503827]
[1644651348164,47.2107449,93.769,93.659,8.32003827]
[1644651348364,47.2107449,93.769,93.66,16.0097]
[1644651348566,47.2107449,93.769,93.66,40.08770377]
[1644651348766,47.2107449,93.769,93.661,3.0079655]
[1644651348964,47.2107449,93.769,93.662,5.335]
[1644651349165,47.2107449,93.769,93.664,35.95465873]
[1644651349370,7.0,93.78,93.665,3.0079655]
[1644651349573,16.0094,93.79,93.68,12.75]
[1644651349574,7.0,93.79,93.68,12.75]
[1644651349771,53.3522,93.83,93.68,12.75]
[1644651349772,5.333,93.809,93.681,3.0079655]
[1644651349972,53.3522,93.83,93.681,3.0079655]
[1644651349973,5.333,93.829,93.681,8.3409655]
[1644651350179,2.38366791,93.822,93.682,3.0079655]
[1644651350375,43.51831758,93.79,93.683,5.333]
[1644651350573,43.51831758,93.79,93.684,3.0079655]
[1644651350873,43.51831758,93.79,93.685,5.333]
[1644651351073,43.51831758,93.79,93.69,12.75]
[1644651352578,43.51831758,93.79,93.69,11.25]
[1644651352977,43.51831758,93.79,93.691,3.00463116]
[1644651353276,43.51831758,93.79,93.692,5.333]
[1644651353477,43.51831758,93.79,93.69,27.2534]
[1644651353677,43.51831758,93.79,93.692,5.333]
[1644651353879,43.51831758,93.79,93.691,5.333]
[1644651354081,43.51831758,93.79,93.69,27.2534]
[1644651354881,43.51831758,93.79,93.691,3.00363]
[1644651355081,43.51831758,93.79,93.7,16.0026]
[1644651355283,7.0,93.84,93.7,28.7526]
[1644651355284,5.333,93.819,93.7,28.7526]
[1644651355480,7.0,93.84,93.701,5.333]
[1644651355690,7.0,93.84,93.7,28.7526]
[1644651355691,2.38366791,93.835,93.7,28.7526]
[1644651355884,5.332,93.834,93.7,28.7526]
[1644651356283,41.2207366,93.833,93.701,35.95465873]
[1644651356485,16.0025,93.83,93.71,16.0013]
[1644651356883,5.332,93.829,93.71,16.0013]
[1644651357286,5.332,93.832,93.71,16.0013]
[1644651358286,16.0041,93.82,93.701,35.95465873]
[1644651358493,34.27096659,93.818,93.701,35.95465873]
[1644651358690,5.332,93.817,93.701,35.95465873]
[1644651358894,34.27096659,93.818,93.701,35.95465873]
[1644651359087,34.27096659,93.818,93.702,42.481859]
[1644651359287,33.77096659,93.818,93.703,5.332]
[1644651359512,33.77096659,93.818,93.71,16.0009]
[1644651359713,60.3352,93.86,93.72,12.75]
[1644651359915,7.0,93.86,93.72,12.75]
[1644651360113,5.331,93.845,93.721,5.331]
[1644651360314,5.331,93.859,93.721,28.77560382]
[1644651360515,5.331,93.859,93.722,23.44460382]
[1644651360712,42.35376589,93.845,93.724,34.05770378]
[1644651360914,42.35376589,93.845,93.73,15.9968]
[1644651361116,42.35376589,93.845,93.731,5.331]
[1644651361316,42.35376589,93.845,93.731,28.77560382]
[1644651362315,5.331,93.844,93.732,14.42286641]
[1644651362516,42.35376589,93.845,93.741,35.95465873]
[1644651363120,42.35376589,93.845,93.741,50.37752514]
[1644651363717,5.33,93.844,93.741,50.37752514]
[1644651363917,5.33,93.844,93.75,12.75]
[1644651364117,41.85376589,93.845,93.75,12.75]
[1644651365316,5.33,93.844,93.75,12.75]
[1644651366720,41.85376589,93.845,93.751,5.33]
[1644651367122,41.85376589,93.845,93.76,15.9927]
[1644651367319,41.85376589,93.845,93.77,12.75]
[1644651368621,41.85376589,93.845,93.77,12.68013909]
[1644651369222,12.75,93.89,93.77,12.68013909]
[1644651369421,23.0512,93.894,93.77,12.68013909]
[1644651369622,5.33,93.892,93.771,5.33]
[1644651369822,5.33,93.893,93.77,12.68013909]
[1644651370023,5.33,93.891,93.77,12.68013909]
[1644651370222,43.7358241,93.845,93.77,12.68013909]
[1644651370924,43.7358241,93.845,93.761,34.55770378]
[1644651371522,43.7358241,93.845,93.762,2.38366791]
[1644651371722,43.7358241,93.845,93.761,34.55770378]
[1644651371922,43.7358241,93.845,93.77,15.9907]
[1644651374323,188.1,93.866,93.77,15.9907]
[1644651374524,188.1,93.866,93.771,5.33]
[1644651374725,113.0,93.885,93.78,12.75]
[1644651374926,113.0,93.885,93.781,5.328]
[1644651375325,47.93817109,93.884,93.782,34.6267545]
[1644651375525,47.93817109,93.884,93.783,5.328]
[1644651376725,47.93817109,93.884,93.79,15.9875]
[1644651376926,47.93817109,93.884,93.79,28.7375]
[1644651378328,47.93817109,93.884,93.791,5.328]
[1644651379629,47.93817109,93.884,93.79,28.7375]
[1644651379630,47.93817109,93.884,93.79,12.75]
[1644651379930,5.328,93.883,93.782,34.6267545]
[1644651380130,47.93817109,93.884,93.782,34.6267545]
[1644651380329,5.328,93.883,93.782,34.6267545]
[1644651380730,15.9938,93.88,93.782,34.6267545]
[1644651383231,47.93817109,93.884,93.782,34.6267545]
[1644651385434,47.93817109,93.884,93.783,5.328]
[1644651386239,47.93817109,93.884,93.784,2.38366791]
[1644651386433,47.93817109,93.884,93.79,15.9876]
[1644651386634,47.93817109,93.884,93.79,28.7376]
[1644651387134,47.93817109,93.884,93.791,2.38366791]
[1644651387337,47.93817109,93.884,93.793,1.49888158]
[1644651387537,47.93817109,93.884,93.8,15.9858]
[1644651387734,47.93817109,93.884,93.805,1.49888158]
[1644651387935,47.93817109,93.884,93.806,1.49888158]
[1644651388137,47.93817109,93.884,93.807,1.49888158]
[1644651388335,47.93817109,93.884,93.804,1.49888158]
[1644651388740,5.328,93.919,93.805,1.49888158]
[1644651388936,5.228,93.919,93.81,28.7343]
[1644651389136,1.48650825,93.925,93.81,28.7343]
[1644651389337,1.48650825,93.923,93.81,28.7343]
[1644651389737,45.34242693,93.922,93.811,5.325]
[1644651389937,43.85591868,93.922,93.811,5.325]
[1644651390141,1.48650825,93.92,93.811,5.325]
[1644651390339,1.48650825,93.92,93.812,14.42016327]
[1644651390543,113.0,93.898,93.812,14.42016327]
[1644651390739,42.33060737,93.897,93.813,39.9517545]
[1644651390941,42.33060737,93.897,93.813,34.6267545]
[1644651397350,113.0,93.898,93.813,34.6267545]
[1644651397549,113.0,93.898,93.814,7.71066791]
[1644651397748,113.0,93.898,93.819,1.49888158]
[1644651397949,113.0,93.898,93.83,12.75]
[1644651398149,113.0,93.898,93.831,5.325]
[1644651398349,113.0,93.898,93.832,34.9978845]
[1644651398550,113.0,93.898,93.833,5.325]
[1644651399454,113.0,93.898,93.834,2.38366791]
[1644651399652,113.0,93.898,93.835,5.325]
[1644651399851,112.9,93.898,93.835,5.325]
[1644651400251,1.48650825,93.933,93.836,2.38366791]
[1644651400451,1.48650825,93.942,93.85,12.75]
[1644651400674,45.93070274,93.94,93.851,35.51447801]
[1644651401678,1.48650825,93.942,93.851,35.51447801]
[1644651402079,113.0,93.949,93.852,16.10770879]
[1644651402579,113.0,93.949,93.853,16.10770879]
[1644651402982,113.0,93.949,93.854,21.43170879]
[1644651403185,113.0,93.949,93.854,16.10770879]
[1644651403382,113.0,93.949,93.86,15.9755]
[1644651403583,113.0,93.949,93.87,12.75]
[1644651403985,113.0,93.949,93.871,16.10770879]
[1644651404183,113.0,93.949,93.872,34.9978845]
[1644651404385,113.0,93.949,93.873,5.324]
[1644651404587,113.0,93.949,93.873,21.43170879]
[1644651404785,113.0,93.949,93.89,15.9699]
[1644651404984,1.48650825,93.98,93.9,12.75]
[1644651405185,1.48650825,93.983,93.9,12.75]
[1644651405385,1.48650825,93.985,93.901,35.51447801]
[1644651406385,37.74897878,93.987,93.901,35.51447801]
[1644651406589,37.74897878,93.987,93.902,5.322]
[1644651406786,37.74897878,93.987,93.91,15.9681]
[1644651407789,37.74897878,93.987,93.911,5.322]
[1644651409390,1.48650825,94.002,93.911,5.322]
[1644651409989,113.0,94.004,93.92,15.9658]
[1644651410190,113.0,94.004,93.92,28.7158]
[1644651410392,113.0,94.004,93.921,34.9978845]
[1644651410890,113.0,94.004,93.922,2.38366791]
[1644651411091,113.0,94.004,93.93,15.9639]
[1644651411291,1.48650825,94.03,93.94,12.75]
[1644651411695,1.48650825,94.028,93.94,12.75]
[1644651411893,39.72819325,94.027,93.941,35.51447801]
[1644651413794,113.0,94.016,93.941,35.51447801]
[1644651416100,4.46750946,94.089,93.95,15.9606]
[1644651416300,2.96353543,94.112,94.023,2.38366791]
[1644651416498,16.2402,94.194,94.016,22.2]
[1644651416499,2.96353543,94.157,94.041,1.24]
[1644651416700,15.9453,94.17,94.05,12.75]
[1644651416898,2.96353543,94.181,94.05,12.75]
[1644651417097,39.01001992,94.18,94.06,15.9445]
[1644651417299,39.01001992,94.18,94.07,12.75]
[1644651417497,39.01001992,94.18,94.071,35.51447801]
[1644651417897,54.95411992,94.18,94.071,35.51447801]
[1644651420200,54.95411992,94.18,94.07,28.6934]
[1644651420402,2.38253053,94.179,94.07,12.75]
[1644651420600,15.9458,94.16,94.07,12.75]
[1644651421001,2.38253053,94.159,94.07,12.75]
[1644651421203,2.38253053,94.159,94.016,22.2]
[1644651421204,47.24895551,94.158,94.05,12.75]
[1644651421403,113.0,94.146,94.03,12.75]
[1644651421606,113.0,94.146,94.02,12.75]
[1644651421806,2.38253053,94.145,94.02,12.75]
[1644651422002,15.9495,94.14,94.02,12.75]
[1644651422202,35.09650225,94.139,94.021,44.78238462]
[1644651422401,37.47903278,94.139,94.021,44.78238462]
[1644651422602,2.38253053,94.138,94.021,44.78238462]
[1644651423605,38.06872661,94.119,94.021,44.78238462]
[1644651424806,38.06872661,94.119,94.022,5.315]
[1644651425206,38.06872661,94.119,94.03,15.34]
[1644651425808,38.06872661,94.119,94.04,15.9466]
[1644651426007,2.38253053,94.118,94.05,15.34]
[1644651426209,2.38253053,94.118,94.04,15.34]
[1644651426408,12.55253053,94.118,94.022,5.315]
[1644651426809,2.38253053,94.117,94.022,5.315]
[1644651427018,15.34,94.11,93.99,15.34]
[1644651427209,31.2945,94.11,93.99,15.34]
[1644651427409,2.38253053,94.109,93.987,41.58323203]
[1644651427610,38.11729287,94.099,93.987,41.58323203]
[1644651427809,15.34,94.09,93.987,41.58323203]
[1644651428214,15.9609,94.08,93.987,41.58323203]
[1644651428411,38.11729287,94.099,93.987,41.58323203]
[1644651428611,38.11729287,94.099,93.988,5.317]
[1644651428811,2.38253053,94.098,93.988,0.12174746]
[1644651429710,15.9587,94.09,93.988,0.12174746]
[1644651431121,2.38253053,94.089,93.988,0.12174746]
[1644651431314,15.8603,94.08,93.988,0.12174746]
[1644651431516,45.39634528,94.079,93.988,0.12174746]
[1644651431714,47.77887581,94.079,93.988,0.12174746]
[1644651431917,2.38253053,94.078,93.988,0.12174746]
[1644651432317,2.38253053,94.078,93.966,5.317]
[1644651432318,31.3017,94.07,93.971,0.12174746]
[1644651432717,2.38253053,94.069,93.971,0.12174746]
[1644651433915,15.9671,94.04,93.971,0.12174746]
[1644651434116,46.44396187,94.039,93.971,0.12174746]
[1644651434316,48.8264924,94.039,93.971,0.12174746]
[1644651434821,2.38253053,94.038,93.971,0.12174746]
[1644651435419,15.9681,94.03,93.938,5.317]
[1644651435820,113.0,94.028,93.938,5.317]
[1644651436022,15.34,94.02,93.938,5.317]
[1644651436421,50.19974993,94.019,93.938,5.317]
[1644651436619,50.19974993,94.019,93.921,0.12174746]
[1644651436822,9.46824913,94.018,93.921,0.12174746]
[1644651437024,15.9733,94.01,93.921,0.12174746]
[1644651437224,15.34,94.0,93.921,0.12174746]
[1644651437624,46.84660402,93.999,93.921,0.12174746]
[1644651437822,54.0994564,93.999,93.921,0.12174746]
[1644651438022,28.44972097,93.998,93.921,0.12174746]
[1644651438425,28.44972097,93.997,93.921,0.12174746]
[1644651438625,28.44972097,93.997,93.851,5.44274746]
[1644651438826,15.983,93.98,93.851,5.44274746]
[1644651439025,15.37947611,93.97,93.851,5.44274746]
[1644651439426,2.38253053,93.969,93.851,5.44274746]
[1644651440829,15.9839,93.94,93.851,5.44274746]
[1644651441129,37.36252415,93.939,93.851,5.44274746]
[1644651441941,15.9854,93.93,93.851,5.44274746]
[1644651442442,15.9854,93.93,93.851,0.12174746]
[1644651442646,15.9854,93.93,93.852,5.325]
[1644651442843,15.9854,93.93,93.851,0.12174746]
[1644651443044,15.9854,93.93,93.853,0.12174746]
[1644651446049,15.9854,93.93,93.851,0.12174746]
[1644651446649,18.36793053,93.93,93.851,0.12174746]
[1644651448751,31.16793053,93.93,93.851,0.12174746]
[1644651449853,28.7854,93.93,93.851,0.12174746]
[1644651450059,28.7854,93.93,93.818,38.45423737]
[1644651450256,31.16793053,93.93,93.819,5.325]
[1644651452654,31.16793053,93.93,93.82,0.12174746]
[1644651452957,31.16793053,93.93,93.821,5.325]
[1644651453955,28.7854,93.93,93.821,5.325]
[1644651454855,15.9882,93.91,93.821,5.325]
[1644651455056,34.70863923,93.909,93.82,0.12174746]
[1644651455657,2.37699365,93.908,93.819,0.12174746]
[1644651456058,34.70863923,93.909,93.819,0.12174746]
[1644651456257,34.70863923,93.909,93.82,15.18366791]
[1644651456658,15.9847,93.93,93.82,15.18366791]
[1644651456859,2.37699365,93.946,93.821,2.38366791]
[1644651457062,12.8,93.99,93.822,48.0887]
[1644651457259,11.10772503,93.989,93.822,106.96728457]
[1644651457462,11.10772503,93.989,93.823,19.56466625]
[1644651457662,46.71578565,93.969,93.824,44.77572206]
[1644651457862,46.71578565,93.969,93.851,24.3429343]
[1644651458067,46.71578565,93.969,93.86,12.8]
[1644651458664,46.71578565,93.969,93.861,7.82841537]
[1644651458864,46.71578565,93.969,93.871,44.05001827]
[1644651459065,15.9719,94.02,93.871,44.05001827]
[1644651459066,0.03947611,94.0,93.88,12.8]
[1644651459265,0.03947611,93.98,93.881,5.321]
[1644651459465,113.0,94.028,93.881,5.321]
[1644651459466,0.03947611,94.01,93.891,1.24]
[1644651459766,0.03947611,94.01,93.9,12.8]
[1644651459966,0.03947611,94.01,93.901,77.83153809]
[1644651460167,0.03947611,94.01,93.901,80.215206]
[1644651460373,0.03947611,94.01,93.902,19.56466625]
[1644651460669,0.03947611,94.01,93.903,5.321]
[1644651460866,0.03947611,94.01,93.903,43.19725248]
[1644651461066,0.03947611,94.01,93.901,72.51053809]
[1644651461067,0.03947611,94.01,93.904,19.56466625]
[1644651461268,0.03947611,94.01,93.905,5.321]
[1644651461468,0.03947611,94.01,93.92,12.8]
[1644651461680,0.03947611,94.01,93.921,42.79072342]
[1644651461867,0.03947611,94.01,93.922,5.321]
[1644651462367,0.03947611,94.01,93.923,2.38366791]
[1644651462568,41.9283457,94.027,93.924,5.321]
[1644651462769,0.03947611,94.02,93.924,5.321]
[1644651462969,41.9283457,94.027,93.924,5.321]
[1644651463272,0.03947611,94.02,93.923,2.38366791]
[1644651463469,41.9283457,94.027,93.923,2.38366791]
[1644651463668,0.03947611,94.02,93.923,2.38366791]
[1644651463868,41.9283457,94.027,93.94,15.9621]
[1644651464073,0.03947611,94.02,93.95,12.8]
[1644651464269,41.9283457,94.027,93.95,12.8]
[1644651464668,41.9283457,94.027,93.951,0.12174746]
[1644651471279,2.37699365,94.026,93.951,0.12174746]
[1644651471574,2.37699365,94.026,93.925,0.12174746]
[1644651471979,10.2211083,94.025,93.925,0.12174746]
[1644651472175,10.2211083,94.025,93.925,35.91516449]
[1644651472374,15.9698,94.02,93.925,35.91516449]
[1644651472575,16.00927611,94.02,93.925,35.91516449]
[1644651472775,44.41953294,94.009,93.925,35.91516449]
[1644651473175,2.37136537,94.008,93.925,35.91516449]
[1644651473580,2.41084148,94.02,93.925,35.91516449]
[1644651473778,0.03947611,94.03,93.926,5.321]
[1644651473978,0.03947611,94.03,93.93,12.8]
[1644651474877,0.03947611,94.03,93.931,5.44174746]
[1644651476580,2.3715292,94.029,93.931,5.44174746]
[1644651476780,2.3715292,94.029,93.931,0.12174746]
[1644651476781,15.97,94.02,93.931,0.12174746]
[1644651476979,43.38572213,94.019,93.931,0.12174746]
[1644651477179,45.75725133,94.019,93.931,0.12174746]
[1644651477379,2.3715292,94.018,93.931,0.12174746]
[1644651478481,2.3715292,94.018,93.926,0.12174746]
[1644651479281,43.38572213,94.019,93.926,0.12174746]
[1644651479581,2.3715292,94.018,93.926,0.12174746]
[1644651479985,15.9725,94.01,93.926,0.12174746]
[1644651480183,28.7725,94.01,93.926,0.12174746]
[1644651480382,2.3715292,94.009,93.926,0.12174746]
[1644651480582,23.70458779,94.009,93.926,0.12174746]
[1644651480983,2.3715292,94.008,93.926,0.12174746]
[1644651481584,2.3715292,94.008,93.907,0.81461833]
[1644651481884,48.35001158,93.989,93.907,0.81461833]
[1644651482294,2.36613024,93.988,93.907,0.81461833]
[1644651483507,15.9788,93.97,93.907,0.81461833]
[1644651483710,12.8,93.96,93.907,0.00461833]
[1644651483907,68.0,93.959,93.874,0.12174746]
[1644651484107,41.36252543,93.958,93.874,0.12174746]
[1644651484307,43.72865567,93.958,93.874,0.12174746]
[1644651484507,2.36613024,93.957,93.874,0.12174746]
[1644651484707,2.36613024,93.957,93.814,0.12174746]
[1644651485808,15.9855,93.95,93.814,0.12174746]
[1644651486108,40.54637787,93.939,93.814,0.12174746]
[1644651486506,2.36613024,93.938,93.814,0.12174746]
[1644651487910,44.75187376,93.909,93.814,0.12174746]
[1644651488712,55.82187376,93.909,93.814,0.12174746]
[1644651489312,55.82187376,93.909,93.815,5.325]
[1644651489511,55.82187376,93.909,93.814,0.12174746]